fUST/lending_fUST_20240108
["ID","MTS","AMOUNT","RATE_DAILY","PERIOD"]
[310731316,1704682258589,-500.0,0.00036986,2]
[310731317,1704682258598,-500.0,0.00036986,2]
[310731318,1704682258607,-500.0,0.00036986,2]
[310731319,1704682258617,-500.0,0.00036986,2]
[310731320,1704682258626,-500.0,0.00036986,2]
[310731321,1704682258635,-500.0,0.00036986,2]
[310731322,1704682258644,-500.0,0.00036986,2]
[310731323,1704682258654,-500.0,0.00036986,2]
[310731324,1704682258663,-1049.4,0.00036986,2]
[310731325,1704682258672,-500.0,0.00036986,2]
[310731326,1704682258681,-2759.75,0.00036986,30]
[310731327,1704682258690,-500.0,0.00036986,2]
[310731328,1704682258700,-652.29,0.00036986,2]
[310731329,1704682258709,-500.0,0.00036986,2]
[310731330,1704682258719,-500.0,0.00036986,2]
[310731331,1704682258729,-10997.14,0.00036986,2]
[310731332,1704682258738,-500.0,0.00036986,2]
[310731333,1704682258748,-292.81420737,0.00036986,2]
[310731334,1704682258757,-480.22172104,0.00036986,2]
[310731335,1704682258766,-1269.5,0.00036986,2]
[310731336,1704682258775,-1366.54,0.00036986,2]
[310731337,1704682258785,-151.0,0.00036986,2]
[310731338,1704682258794,-152.469272,0.00036986,2]
[310731339,1704682258803,-154.8915759,0.00037,4]
[310731340,1704682258814,-30281.75485375,0.00037,2]
[310731341,1704682258823,-62499.0,0.00037,2]
[310731342,1704682258832,-28384.0,0.00037,2]
[310731343,1704682258842,-5249.31800972,0.00037,2]
[310731344,1704682258851,-3754.5,0.00037,2]
[310731345,1704682258860,-1000.0,0.00037,37]
[310731346,1704682258870,-500.0,0.00037,7]
[310731347,1704682258879,-875.23077334,0.00037015,14]
[310731348,1704682258888,-4000.0,0.00037075,2]
[310731349,1704682258897,-151.85194859,0.00037185,14]
[310731350,1704682258906,-875.23077334,0.00037226,14]
[310731351,1704682258916,-216.7286919,0.0003724,2]
[310731352,1704682258925,-410.58882683,0.0003726,2]
[310731353,1704682258934,-500.0,0.0003726,2]
[310731354,1704682258943,-500.0,0.0003726,2]
[310731355,1704682258952,-525.07,0.0003726,2]
[310731356,1704682258962,-500.0,0.0003726,2]
[310731357,1704682258971,-500.0,0.0003726,2]
[310731358,1704682258981,-500.0,0.0003726,2]
[310731359,1704682258990,-500.0,0.0003726,2]
[310731360,1704682258999,-500.0,0.0003726,2]
[310731361,1704682259008,-500.0,0.0003726,2]
[310731362,1704682259067,-500.0,0.0003726,2]
[310731363,1704682259077,-500.0,0.0003726,2]
[310731364,1704682259086,-1580.14,0.0003726,2]
[310731365,1704682259096,-500.0,0.0003726,2]
[310731366,1704682259105,-585.62,0.0003726,2]
[310731367,1704682259114,-500.0,0.0003726,2]
[310731368,1704682259124,-360.07695416,0.0003726,2]
[310731369,1704682259133,-500.0,0.0003726,2]
[310731370,1704682259142,-500.0,0.0003726,2]
[310731371,1704682259152,-500.0,0.0003726,2]
[310731372,1704682259161,-500.0,0.0003726,2]
[310731373,1704682259170,-627.30552069,0.0003726,2]
[310731374,1704682259179,-321.78010021,0.0003726,2]
[310731375,1704682259188,-500.0,0.0003726,2]
[310731376,1704682259198,-500.0,0.0003726,2]
[310731377,1704682259208,-500.0,0.0003726,2]
[310731378,1704682259218,-500.0,0.0003726,2]
[310731379,1704682259227,-500.0,0.0003726,2]
[310731380,1704682259237,-500.0,0.0003726,2]
[310731381,1704682259246,-500.0,0.0003726,2]
[310731382,1704682259257,-500.0,0.0003726,2]
[310731383,1704682259273,-477.26864391,0.0003726,2]
[310731384,1704682259284,-304.98909376,0.0003726,2]
[310731385,1704682259295,-500.0,0.0003726,2]
[310731386,1704682259305,-500.0,0.0003726,2]
[310731387,1704682259317,-500.0,0.0003726,2]
[310731388,1704682259327,-500.0,0.0003726,2]
[310731389,1704682259337,-2657.98,0.0003726,2]
[310731390,1704682259347,-542.47624187,0.0003726,2]
[310731391,1704682259358,-500.0,0.0003726,2]
[310731392,1704682259369,-2188.37,0.0003726,2]
[310731393,1704682259380,-249.44257495,0.0003726,2]
[310731394,1704682259391,-500.0,0.0003726,2]
[310731395,1704682259401,-500.0,0.0003726,2]
[310731396,1704682259412,-500.0,0.0003726,2]
[310731397,1704682259422,-500.0,0.0003726,2]
[310731398,1704682259432,-500.0,0.0003726,2]
[310731399,1704682259442,-500.0,0.0003726,2]
[310731400,1704682259452,-500.0,0.0003726,2]
[310731401,1704682259463,-500.0,0.0003726,2]
[310731402,1704682259481,-500.0,0.0003726,2]
[310731403,1704682259499,-500.0,0.0003726,2]
[310731404,1704682259516,-500.0,0.0003726,2]
[310731405,1704682259534,-500.0,0.0003726,2]
[310731406,1704682259549,-500.0,0.0003726,2]
[310731407,1704682259569,-500.0,0.0003726,2]
[310731408,1704682259592,-500.0,0.0003726,2]
[310731409,1704682259608,-500.0,0.0003726,2]
[310731410,1704682259626,-695.7,0.0003726,2]
[310731411,1704682259642,-793.54,0.0003726,2]
[310731412,1704682259660,-1000.0,0.0003726,7]
[310731413,1704682259680,-500.0,0.0003726,2]
[310731414,1704682259694,-500.0,0.0003726,2]
[310731415,1704682259710,-500.0,0.0003726,2]
[310731416,1704682259725,-500.0,0.0003726,2]
[310731417,1704682259739,-1803.91,0.0003726,2]
[310731418,1704682259753,-602.93918056,0.0003726,2]
[310731419,1704682259768,-500.0,0.0003726,2]
[310731420,1704682259782,-515.81,0.0003726,2]
[310731421,1704682259796,-500.0,0.0003726,2]
[310731422,1704682259810,-282.83869355,0.0003726,2]
[310731423,1704682259825,-500.0,0.0003726,2]
[310731424,1704682259839,-1332.48,0.0003726,2]
[310731425,1704682259853,-500.0,0.0003726,2]
[310731426,1704682259868,-500.0,0.0003726,2]
[310731427,1704682259882,-500.0,0.0003726,2]
[310731428,1704682259897,-500.0,0.0003726,2]
[310731429,1704682259911,-500.0,0.0003726,2]
[310731430,1704682259926,-1358.5,0.0003726,2]
[310731431,1704682259941,-500.0,0.0003726,2]
[310731432,1704682259954,-588.33983134,0.0003726,2]
[310731433,1704682259968,-594.44,0.0003726,2]
[310731434,1704682259983,-512.65803981,0.0003726,2]
[310731435,1704682259997,-500.0,0.0003726,2]
[310731436,1704682260011,-500.0,0.0003726,2]
[310731437,1704682260026,-217.93251052,0.0003726,2]
[310731438,1704682260042,-500.0,0.0003726,2]
[310731439,1704682260057,-515.44,0.0003726,2]
[310731440,1704682260076,-500.0,0.0003726,2]
[310731441,1704682260092,-1059.21,0.0003726,2]
[310731442,1704682260108,-500.0,0.0003726,2]
[310731443,1704682260123,-2874.89,0.0003726,2]
[310731444,1704682260212,-500.0,0.0003726,2]
[310731445,1704682260223,-6321.49,0.0003726,2]
[310731446,1704682260232,-942.67,0.0003726,2]
[310731447,1704682260241,-2567.86,0.0003726,2]
[310731448,1704682260251,-1000.0,0.0003726,2]
[310731449,1704682260260,-500.0,0.0003726,2]
[310731450,1704682260269,-500.0,0.0003726,2]
[310731451,1704682260279,-500.0,0.0003726,2]
[310731452,1704682260288,-2114.37,0.0003726,2]
[310731453,1704682260298,-549.93780237,0.0003726,2]
[310731454,1704682260307,-2854.23,0.0003726,2]
[310731455,1704682260319,-674.37,0.0003726,2]
[310731456,1704682260329,-500.0,0.0003726,2]
[310731457,1704682260340,-508.55,0.0003726,2]
[310731458,1704682260349,-500.0,0.0003726,2]
[310731459,1704682260359,-500.0,0.0003726,2]
[310731460,1704682260368,-228.81222293,0.0003726,2]
[310731461,1704682260378,-561.46,0.0003726,2]
[310731462,1704682260389,-500.0,0.0003726,2]
[310731463,1704682260399,-500.0,0.0003726,2]
[310731464,1704682260408,-500.0,0.0003726,2]
[310731465,1704682260418,-7119.89,0.0003726,2]
[310731466,1704682260428,-500.0,0.0003726,2]
[310731467,1704682260438,-500.0,0.0003726,2]
[310731468,1704682260448,-673.1,0.0003726,2]
[310731469,1704682260458,-500.0,0.0003726,2]
[310731470,1704682260468,-2106.15,0.0003726,2]
[310731471,1704682260478,-540.82,0.0003726,2]
[310731472,1704682260488,-521.73,0.0003726,2]
[310731473,1704682260498,-500.0,0.0003726,2]
[310731474,1704682260508,-567.56680786,0.0003726,2]
[310731475,1704682260518,-1543.59,0.0003726,2]
[310731476,1704682260528,-500.0,0.0003726,2]
[310731477,1704682260537,-16777.35,0.0003726,2]
[310731478,1704682260546,-500.0,0.0003726,2]
[310731479,1704682260558,-500.0,0.0003726,2]
[310731480,1704682260574,-500.0,0.0003726,2]
[310731481,1704682260584,-151.0,0.0003726,2]
[310731482,1704682260594,-500.0,0.0003726,2]
[310731483,1704682260604,-500.0,0.0003726,2]
[310731484,1704682260614,-500.0,0.0003726,2]
[310731485,1704682260624,-2508.32,0.0003726,2]
[310731486,1704682260634,-2347.13,0.0003726,2]
[310731487,1704682260645,-500.0,0.0003726,2]
[310731488,1704682260656,-500.0,0.0003726,2]
[310731489,1704682260665,-500.0,0.0003726,2]
[310731490,1704682260676,-2725.61,0.0003726,2]
[310731491,1704682260685,-500.0,0.0003726,2]
[310731492,1704682260696,-500.0,0.0003726,2]
[310731493,1704682260706,-562.64038553,0.0003726,2]
[310731494,1704682260715,-500.0,0.0003726,2]
[310731495,1704682260724,-500.0,0.0003726,2]
[310731496,1704682260734,-500.0,0.0003726,2]
[310731497,1704682260744,-500.0,0.0003726,2]
[310731498,1704682260753,-500.0,0.0003726,2]
[310731499,1704682260762,-1049.4,0.0003726,2]
[310731500,1704682260772,-500.0,0.0003726,2]
[310731501,1704682260782,-500.0,0.0003726,2]
[310731502,1704682260792,-652.29,0.0003726,2]
[310731503,1704682260803,-500.0,0.0003726,2]
[310731504,1704682260815,-500.0,0.0003726,2]
[310731505,1704682260824,-10997.14,0.0003726,2]
[310731506,1704682260834,-599.88685531,0.0003726,2]
[310731507,1704682260843,-1269.5,0.0003726,2]
[310731508,1704682260853,-1366.54,0.0003726,2]
[310731509,1704682260863,-2000.0,0.00037475,120]
[310731510,1704682260873,-760.0,0.000375,30]
[310731511,1704682260882,-500.0,0.00037534,2]
[310731512,1704682260892,-500.0,0.00037534,2]
[310731513,1704682260902,-525.07,0.00037534,2]
[310731514,1704682260911,-500.0,0.00037534,2]
[310731515,1704682260920,-500.0,0.00037534,2]
[310731516,1704682260929,-500.0,0.00037534,2]
[310731517,1704682260938,-546.37892691,0.00037534,2]
[310731518,1704682260948,-500.0,0.00037534,2]
[310731519,1704682260957,-500.0,0.00037534,2]
[310731520,1704682260967,-500.0,0.00037534,2]
[310731521,1704682260977,-500.0,0.00037534,2]
[310731522,1704682260986,-1580.14,0.00037534,2]
[310731523,1704682260996,-500.0,0.00037534,2]
[310731524,1704682261005,-585.62,0.00037534,2]
[310731525,1704682261015,-500.0,0.00037534,2]
[310731526,1704682261024,-500.0,0.00037534,2]
[310731527,1704682261033,-500.0,0.00037534,2]
[310731528,1704682261043,-500.0,0.00037534,2]
[310731529,1704682261053,-500.0,0.00037534,2]
[310731530,1704682261063,-500.0,0.00037534,2]
[310731531,1704682261074,-500.0,0.00037534,2]
[310731532,1704682261084,-500.0,0.00037534,2]
[310731533,1704682261094,-545.35299882,0.00037534,2]
[310731534,1704682261103,-500.0,0.00037534,2]
[310731535,1704682261164,-500.0,0.00037534,2]
[310731536,1704682261174,-396.29967513,0.00037534,2]
[310731537,1704682261183,-500.0,0.00037534,2]
[310731538,1704682261193,-550.74376636,0.00037534,2]
[310731539,1704682261202,-500.0,0.00037534,2]
[310731540,1704682261211,-500.0,0.00037534,2]
[310731541,1704682261220,-500.0,0.00037534,2]
[310731542,1704682261229,-2657.98,0.00037534,2]
[310731543,1704682261239,-500.0,0.00037534,2]
[310731544,1704682261248,-2188.37,0.00037534,2]
[310731545,1704682261257,-500.0,0.00037534,2]
[310731546,1704682261267,-500.0,0.00037534,2]
[310731547,1704682261276,-500.0,0.00037534,2]
[310731548,1704682261285,-500.0,0.00037534,2]
[310731549,1704682261294,-500.0,0.00037534,2]
[310731550,1704682261304,-500.0,0.00037534,2]
[310731551,1704682261316,-500.0,0.00037534,2]
[310731552,1704682261325,-500.0,0.00037534,2]
[310731553,1704682261334,-500.0,0.00037534,2]
[310731554,1704682261343,-500.0,0.00037534,2]
[310731555,1704682261352,-500.0,0.00037534,2]
[310731556,1704682261361,-461.59171881,0.00037534,2]
[310731557,1704682261370,-500.0,0.00037534,2]
[310731558,1704682261379,-500.0,0.00037534,2]
[310731559,1704682261389,-500.0,0.00037534,2]
[310731560,1704682261398,-500.0,0.00037534,2]
[310731561,1704682261407,-695.7,0.00037534,2]
[310731562,1704682261416,-793.54,0.00037534,2]
[310731563,1704682261425,-1000.0,0.00037534,7]
[310731564,1704682261435,-500.0,0.00037534,2]
[310731565,1704682261443,-500.0,0.00037534,2]
[310731566,1704682261452,-500.0,0.00037534,2]
[310731567,1704682261461,-500.0,0.00037534,2]
[310731568,1704682261470,-1803.91,0.00037534,2]
[310731569,1704682261479,-500.0,0.00037534,2]
[310731570,1704682261488,-515.81,0.00037534,2]
[310731571,1704682261497,-500.0,0.00037534,2]
[310731572,1704682261506,-500.0,0.00037534,2]
[310731573,1704682261515,-1332.48,0.00037534,2]
[310731574,1704682261524,-500.0,0.00037534,2]
[310731575,1704682261533,-500.0,0.00037534,2]
[310731576,1704682261542,-500.0,0.00037534,2]
[310731577,1704682261550,-500.0,0.00037534,2]
[310731578,1704682261559,-500.0,0.00037534,2]
[310731579,1704682261569,-1358.5,0.00037534,2]
[310731580,1704682261578,-500.0,0.00037534,2]
[310731581,1704682261587,-594.44,0.00037534,2]
[310731582,1704682261596,-500.0,0.00037534,2]
[310731583,1704682261605,-500.0,0.00037534,2]
[310731584,1704682261614,-500.0,0.00037534,2]
[310731585,1704682261624,-515.44,0.00037534,2]
[310731586,1704682261633,-500.0,0.00037534,2]
[310731587,1704682261642,-1059.21,0.00037534,2]
[310731588,1704682261650,-500.0,0.00037534,2]
[310731589,1704682261659,-2874.89,0.00037534,2]
[310731590,1704682261668,-500.0,0.00037534,2]
[310731591,1704682261678,-6321.49,0.00037534,2]
[310731592,1704682261687,-942.67,0.00037534,2]
[310731593,1704682261696,-2567.86,0.00037534,2]
[310731594,1704682261705,-1000.0,0.00037534,2]
[310731595,1704682261714,-500.0,0.00037534,2]
[310731596,1704682261723,-500.0,0.00037534,2]
[310731597,1704682261732,-500.0,0.00037534,2]
[310731598,1704682261741,-2114.37,0.00037534,2]
[310731599,1704682261751,-2854.23,0.00037534,2]
[310731600,1704682261760,-674.37,0.00037534,2]
[310731601,1704682261769,-500.0,0.00037534,2]
[310731602,1704682261779,-508.55,0.00037534,2]
[310731603,1704682261788,-500.0,0.00037534,2]
[310731604,1704682261797,-500.0,0.00037534,2]
[310731605,1704682261806,-561.46,0.00037534,2]
[310731606,1704682261816,-500.0,0.00037534,2]
[310731607,1704682261825,-500.0,0.00037534,2]
[310731608,1704682261834,-500.0,0.00037534,2]
[310731609,1704682261842,-7119.89,0.00037534,2]
[310731610,1704682261852,-500.0,0.00037534,2]
[310731611,1704682261861,-500.0,0.00037534,2]
[310731612,1704682261870,-673.1,0.00037534,2]
[310731613,1704682261879,-500.0,0.00037534,2]
[310731614,1704682261888,-2106.15,0.00037534,2]
[310731615,1704682261898,-540.82,0.00037534,2]
[310731616,1704682261907,-521.73,0.00037534,2]
[310731617,1704682261916,-500.0,0.00037534,2]
[310731618,1704682261926,-1543.59,0.00037534,2]
[310731619,1704682261935,-384.92811951,0.00037534,2]
[310731620,1704682261945,-16777.35,0.00037534,2]
[310731621,1704682261955,-500.0,0.00037534,2]
[310731622,1704682261964,-500.0,0.00037534,2]
[310731623,1704682261973,-500.0,0.00037534,2]
[310731624,1704682261983,-500.0,0.00037534,2]
[310731625,1704682261992,-500.0,0.00037534,2]
[310731626,1704682262002,-2508.32,0.00037534,2]
[310731627,1704682262011,-500.0,0.00037534,2]
[310731628,1704682262020,-2347.13,0.00037534,2]
[310731629,1704682262029,-500.0,0.00037534,2]
[310731630,1704682262038,-500.0,0.00037534,2]
[310731631,1704682262048,-587.37507229,0.00037534,2]
[310731632,1704682262057,-2725.61,0.00037534,2]
[310731633,1704682262067,-500.0,0.00037534,2]
[310731634,1704682262077,-500.0,0.00037534,2]
[310731635,1704682262086,-500.0,0.00037534,2]
[310731636,1704682262095,-500.0,0.00037534,2]
[310731637,1704682262105,-500.0,0.00037534,2]
[310731638,1704682262114,-500.0,0.00037534,2]
[310731639,1704682262123,-500.0,0.00037534,2]
[310731640,1704682262132,-1049.4,0.00037534,2]
[310731641,1704682262142,-500.0,0.00037534,2]
[310731642,1704682262151,-500.0,0.00037534,2]
[310731643,1704682262160,-652.29,0.00037534,2]
[310731644,1704682262169,-500.0,0.00037534,2]
[310731645,1704682262178,-500.0,0.00037534,2]
[310731646,1704682262187,-10997.14,0.00037534,2]
[310731647,1704682262197,-1269.5,0.00037534,2]
[310731648,1704682262207,-1366.54,0.00037534,2]
[310731649,1704682262216,-22490.00236767,0.00037614,2]
[310731650,1704682262225,-1816.18949,0.00037732,2]
[310731651,1704682262234,-3034.267825,0.0003777,3]
[310731652,1704682262244,-66608.0,0.0003777,4]
[310731653,1704682262253,-248.0,0.0003778,7]
[310731654,1704682262262,-10383.0,0.0003778,60]
[310731655,1704682262271,-2669.0,0.0003778,60]
[310731656,1704682262280,-519.0,0.0003778,60]
[310731657,1704682262289,-9325.0,0.0003778,60]
[310731658,1704682262298,-176.350856,0.00037782,2]
[310731659,1704682262308,-174.93,0.00037788,60]
[310731660,1704682262320,-248.0,0.0003779,7]
[310731661,1704682262329,-10383.0,0.0003779,60]
[310731662,1704682262338,-183.82,0.0003779,60]
[310731663,1704682262348,-2669.0,0.0003779,60]
[310731664,1704682262357,-519.0,0.0003779,60]
[310731665,1704682262366,-9325.0,0.0003779,60]
[310731666,1704682262375,-150.0,0.00037798,60]
[310731667,1704682262384,-3573.3,0.000378,21]
[310731668,1704682262394,-150.0,0.000378,60]
[310731669,1704682262404,-248.0,0.000378,7]
[310731670,1704682262413,-10383.0,0.000378,60]
[310731671,1704682262422,-2669.0,0.000378,60]
[310731672,1704682262431,-519.0,0.000378,60]
[310731673,1704682262441,-9325.0,0.000378,60]
[310731674,1704682262450,-151.0,0.000378,2]
[310731675,1704682262459,-500.0,0.00037808,2]
[310731676,1704682262468,-500.0,0.00037808,2]
[310731677,1704682262478,-525.07,0.00037808,2]
[310731678,1704682262487,-500.0,0.00037808,2]
[310731679,1704682262497,-500.0,0.00037808,2]
[310731680,1704682262507,-500.0,0.00037808,2]
[310731681,1704682262517,-500.0,0.00037808,2]
[310731682,1704682262526,-500.0,0.00037808,2]
[310731683,1704682262536,-500.0,0.00037808,2]
[310731684,1704682262545,-500.0,0.00037808,2]
[310731685,1704682262556,-1580.14,0.00037808,2]
[310731686,1704682262570,-500.0,0.00037808,2]
[310731687,1704682262583,-585.62,0.00037808,2]
[310731688,1704682262593,-500.0,0.00037808,2]
[310731689,1704682262604,-500.0,0.00037808,2]
[310731690,1704682262614,-500.0,0.00037808,2]
[310731691,1704682262623,-500.0,0.00037808,2]
[310731692,1704682262633,-368.57589035,0.00037808,2]
[310731693,1704682262642,-500.0,0.00037808,2]
[310731694,1704682262651,-500.0,0.00037808,2]
[310731695,1704682262662,-500.0,0.00037808,2]
[310731696,1704682262673,-500.0,0.00037808,2]
[310731697,1704682262684,-500.0,0.00037808,2]
[310731698,1704682262693,-500.0,0.00037808,2]
[310731699,1704682262703,-541.40266471,0.00037808,2]
[310731700,1704682262713,-500.0,0.00037808,2]
[310731701,1704682262722,-500.0,0.00037808,2]
[310731702,1704682262731,-2657.98,0.00037808,2]
[310731703,1704682262740,-500.0,0.00037808,2]
[310731704,1704682262750,-2188.37,0.00037808,2]
[310731705,1704682262760,-377.87821107,0.00037808,2]
[310731706,1704682262770,-500.0,0.00037808,2]
[310731707,1704682262779,-500.0,0.00037808,2]
[310731708,1704682262788,-456.97228023,0.00037808,2]
[310731709,1704682262797,-500.0,0.00037808,2]
[310731710,1704682262806,-500.0,0.00037808,2]
[310731711,1704682262815,-500.0,0.00037808,2]
[310731712,1704682262827,-500.0,0.00037808,2]
[310731713,1704682262836,-500.0,0.00037808,2]
[310731714,1704682262846,-500.0,0.00037808,2]
[310731715,1704682262855,-500.0,0.00037808,2]
[310731716,1704682262864,-500.0,0.00037808,2]
[310731717,1704682262873,-500.0,0.00037808,2]
[310731718,1704682262882,-500.0,0.00037808,2]
[310731719,1704682262892,-500.0,0.00037808,2]
[310731720,1704682262901,-695.7,0.00037808,2]
[310731721,1704682262911,-793.54,0.00037808,2]
[310731722,1704682262921,-643.77111313,0.00037808,7]
[310731723,1704682262930,-500.0,0.00037808,2]
[310731725,1704682262940,-203.67309071,0.00037808,2]
[310731726,1704682262949,-500.0,0.00037808,2]
[310731727,1704682262959,-248.28388126,0.00037808,2]
[310731728,1704682262969,-1803.91,0.00037808,2]
[310731729,1704682262979,-500.0,0.00037808,2]
[310731730,1704682262989,-515.81,0.00037808,2]
[310731731,1704682262999,-500.0,0.00037808,2]
[310731732,1704682263008,-455.99894904,0.00037808,2]
[310731733,1704682263018,-1332.48,0.00037808,2]
[310731734,1704682263028,-500.0,0.00037808,2]
[310731735,1704682263038,-500.0,0.00037808,2]
[310731736,1704682263048,-500.0,0.00037808,2]
[310731737,1704682263057,-500.0,0.00037808,2]
[310731738,1704682263070,-500.0,0.00037808,2]
[310731739,1704682263079,-1358.5,0.00037808,2]
[310731740,1704682263088,-500.0,0.00037808,2]
[310731741,1704682263098,-594.44,0.00037808,2]
[310731742,1704682263107,-500.0,0.00037808,2]
[310731743,1704682263116,-500.0,0.00037808,2]
[310731744,1704682263126,-500.0,0.00037808,2]
[310731745,1704682263135,-515.44,0.00037808,2]
[310731746,1704682263145,-500.0,0.00037808,2]
[310731747,1704682263154,-1059.21,0.00037808,2]
[310731748,1704682263163,-500.0,0.00037808,2]
[310731749,1704682263254,-2874.89,0.00037808,2]
[310731750,1704682263263,-500.0,0.00037808,2]
[310731751,1704682263273,-6321.49,0.00037808,2]
[310731752,1704682263283,-942.67,0.00037808,2]
[310731753,1704682263292,-2567.86,0.00037808,2]
[310731754,1704682263301,-1000.0,0.00037808,2]
[310731755,1704682263310,-500.0,0.00037808,2]
[310731756,1704682263322,-500.0,0.00037808,2]
[310731757,1704682263331,-500.0,0.00037808,2]
[310731758,1704682263340,-2114.37,0.00037808,2]
[310731759,1704682263349,-2854.23,0.00037808,2]
[310731760,1704682263358,-674.37,0.00037808,2]
[310731761,1704682263368,-508.55,0.00037808,2]
[310731762,1704682263377,-500.0,0.00037808,2]
[310731763,1704682263386,-471.35733741,0.00037808,2]
[310731764,1704682263395,-500.0,0.00037808,2]
[310731765,1704682263404,-561.46,0.00037808,2]
[310731766,1704682263413,-500.0,0.00037808,2]
[310731767,1704682263422,-500.0,0.00037808,2]
[310731768,1704682263431,-500.0,0.00037808,2]
[310731769,1704682263440,-7119.89,0.00037808,2]
[310731770,1704682263450,-500.0,0.00037808,2]
[310731771,1704682263458,-500.0,0.00037808,2]
[310731772,1704682263467,-673.1,0.00037808,2]
[310731773,1704682263476,-500.0,0.00037808,2]
[310731774,1704682263485,-2106.15,0.00037808,2]
[310731775,1704682263495,-540.82,0.00037808,2]
[310731776,1704682263504,-521.73,0.00037808,2]
[310731777,1704682263513,-500.0,0.00037808,2]
[310731778,1704682263521,-1543.59,0.00037808,2]
[310731779,1704682263536,-16777.35,0.00037808,2]
[310731780,1704682263564,-500.0,0.00037808,2]
[310731781,1704682263577,-500.0,0.00037808,2]
[310731782,1704682263586,-500.0,0.00037808,2]
[310731783,1704682263595,-500.0,0.00037808,2]
[310731784,1704682263605,-500.0,0.00037808,2]
[310731785,1704682263615,-2508.32,0.00037808,2]
[310731786,1704682263624,-500.0,0.00037808,2]
[310731787,1704682263634,-2347.13,0.00037808,2]
[310731788,1704682263643,-345.72046672,0.00037808,2]
[310731789,1704682263653,-500.0,0.00037808,2]
[310731790,1704682263662,-2725.61,0.00037808,2]
[310731791,1704682263671,-349.29335926,0.00037808,2]
[310731792,1704682263680,-500.0,0.00037808,2]
[310731793,1704682263689,-500.0,0.00037808,2]
[310731794,1704682263699,-500.0,0.00037808,2]
[310731795,1704682263707,-500.0,0.00037808,2]
[310731796,1704682263717,-500.0,0.00037808,2]
[310731797,1704682263726,-500.0,0.00037808,2]
[310731798,1704682263735,-1049.4,0.00037808,2]
[310731799,1704682263744,-500.0,0.00037808,2]
[310731800,1704682263753,-500.0,0.00037808,2]
[310731801,1704682263762,-652.29,0.00037808,2]
[310731802,1704682263771,-500.0,0.00037808,2]
[310731803,1704682263780,-500.0,0.00037808,2]
[310731804,1704682263790,-10997.14,0.00037808,2]
[310731805,1704682263799,-1269.5,0.00037808,2]
[310731806,1704682263807,-1366.54,0.00037808,2]
[310731807,1704682263816,-875.23077334,0.0003781,14]
[310731808,1704682263828,-200.0,0.00037832,60]
[310731809,1704682263838,-318.0,0.00037832,7]
[310731810,1704682263847,-200.0,0.00037842,60]
[310731811,1704682263857,-318.0,0.00037842,7]
[310731812,1704682263866,-200.0,0.00037852,60]
[310731813,1704682263875,-318.0,0.00037852,7]
[310731814,1704682263884,-519.0,0.0003797,60]
[310731815,1704682263894,-2669.0,0.0003797,60]
[310731816,1704682263903,-9325.0,0.0003797,60]